bitfinex/quotes_BTCUSD_20251207
["timestamp","ask_amount","ask_price","bid_price","bid_amount"]
[1765145744425,0.01808,89413.0,89410.0,0.01118443]
[1765145745300,0.01118318,89420.0,89416.0,0.01118368]
[1765145745500,0.01808,89428.0,89418.0,0.01118343]
[1765145745501,0.0111828,89423.0,89418.0,0.01118343]
[1765145745736,0.01118243,89426.0,89422.0,0.01118293]
[1765145745862,0.02926218,89428.0,89425.0,0.01118255]
[1765145745863,0.01808,89428.0,89425.0,0.01118255]
[1765145746068,0.01808,89428.0,89424.0,0.2236536]
[1765145746295,0.01808,89428.0,89425.0,0.01118255]
[1765145746296,0.00121084,89426.0,89425.0,0.01118255]
[1765145746710,0.00121084,89426.0,89424.0,0.01118268]
[1765145747010,0.002,89426.0,89423.0,0.0111828]
[1765145747388,0.002,89426.0,89425.0,0.2236511]
[1765145747577,0.002,89426.0,89425.0,0.28821397]
[1765145747578,0.003,89426.0,89425.0,0.28821397]
[1765145747772,0.003,89426.0,89425.0,0.38057397]
[1765145748009,0.001,89426.0,89425.0,0.38057397]
[1765145748236,0.001,89426.0,89425.0,0.28821397]
[1765145748438,0.003,89426.0,89425.0,0.28821397]
[1765145748661,0.001,89426.0,89425.0,0.28821397]
[1765145749154,0.001,89426.0,89425.0,0.29621397]
[1765145749385,0.01808,89428.0,89425.0,0.29939652]
[1765145749569,0.001,89426.0,89425.0,0.30539652]
[1765145749778,0.001,89426.0,89425.0,0.00761287]
[1765145750002,0.14624,89426.0,89425.0,0.006]
[1765145750209,0.596016,89426.0,89425.0,0.006]
[1765145750575,0.919016,89426.0,89425.0,0.008]
[1765145750795,0.919016,89426.0,89376.0,0.03169]
[1765145750796,0.22370113,89405.0,89376.0,0.03169]
[1765145750946,0.87723613,89405.0,89362.0,0.01119043]
[1765145751149,0.22378931,89370.0,89368.0,0.03169]
[1765145751347,0.01118931,89371.0,89368.0,0.03169]
[1765145751710,0.22378183,89373.0,89365.0,0.01119006]
[1765145751882,0.27176534,89376.0,89358.0,0.01119093]
[1765145751883,0.01118956,89369.0,89358.0,0.01119093]
[1765145752235,0.01118956,89369.0,89332.0,0.01808]
[1765145752236,0.25709614,89360.0,89359.0,0.00039173]
[1765145752375,0.27517614,89360.0,89359.0,0.00039173]
[1765145752569,0.24189614,89360.0,89359.0,0.00039173]
[1765145752977,0.01808,89360.0,89359.0,0.00039173]
[1765145754195,0.01908,89360.0,89359.0,0.00539173]
[1765145754537,0.01908,89360.0,89359.0,0.00039173]
[1765145754680,0.01908,89360.0,89359.0,0.0020046]
[1765145755019,0.01908,89360.0,89359.0,0.0090046]
[1765145756288,0.01908,89360.0,89359.0,0.1643146]
[1765145756855,0.001,89360.0,89359.0,0.22683759]
[1765145757415,0.01118843,89378.0,89374.0,0.01118893]
[1765145757739,0.01118893,89374.0,89368.0,0.01118968]
[1765145757942,0.2237518,89385.0,89370.0,0.01118943]
[1765145758237,0.01118806,89381.0,89374.0,0.01118893]
[1765145758484,0.01118831,89379.0,89375.0,0.01118881]
[1765145759356,0.01118793,89382.0,89377.0,0.01118856]
[1765145759974,0.01118793,89382.0,89373.0,0.01118906]
[1765145760122,0.01118843,89378.0,89375.0,0.01118881]
[1765145760318,0.01118593,89398.0,89391.0,0.0111868]
[1765145760525,0.01808,89397.0,89382.0,0.01118793]
[1765145760771,0.01808,89397.0,89381.0,0.23494774]
[1765145760772,0.01118818,89380.0,89375.0,0.01718881]
[1765145760975,0.01118843,89378.0,89375.0,0.006]
[1765145761151,0.01118856,89377.0,89372.0,0.01118918]
[1765145761353,0.01118856,89377.0,89365.0,0.22379932]
[1765145761354,0.22380627,89363.0,89348.0,0.01119219]
[1765145761552,0.01119156,89353.0,89350.0,0.00059173]
[1765145761772,0.04759,89351.0,89350.0,0.00059173]
[1765145762355,0.09557,89351.0,89350.0,0.00059173]
[1765145762551,0.19298,89351.0,89350.0,0.00059173]
[1765145762753,0.19298,89351.0,89350.0,0.00359173]
[1765145763475,0.19298,89351.0,89350.0,0.00059173]
[1765145763781,0.19298,89351.0,89350.0,0.00159173]
[1765145763782,0.570599,89351.0,89350.0,0.00159173]
[1765145764142,0.570599,89351.0,89320.0,0.0113957]
[1765145764143,0.22391151,89321.0,89320.0,0.0002]
[1765145764365,0.22391151,89321.0,89320.0,0.00031836]
[1765145764366,0.24296151,89321.0,89320.0,0.00031836]
[1765145764581,0.33806151,89321.0,89320.0,0.00031836]
[1765145765591,0.33806151,89321.0,89320.0,0.00131836]
[1765145765953,0.24299151,89321.0,89320.0,0.00131836]
[1765145766163,0.38552151,89321.0,89320.0,0.00131836]
[1765145766582,0.38452151,89321.0,89320.0,0.00131836]
[1765145766759,0.70752151,89321.0,89320.0,0.00031836]
[1765145767009,0.71752151,89321.0,89320.0,0.00131836]
[1765145767859,0.71752151,89321.0,89320.0,0.00231836]
[1765145768058,0.39852151,89321.0,89320.0,0.00231836]
[1765145768286,0.36855,89334.0,89320.0,0.00231836]
[1765145768287,0.03363852,89359.0,89355.0,0.22382547]
[1765145768493,0.03363852,89359.0,89320.0,0.03697123]
[1765145768494,0.01119219,89348.0,89322.0,0.00161287]
[1765145768693,0.0951,89358.0,89322.0,0.00161287]
[1765145768694,0.01119382,89335.0,89322.0,0.00161287]
[1765145768992,0.04555,89341.0,89336.0,0.01119369]
[1765145769194,0.04555,89347.0,89344.0,0.01119269]
[1765145769390,0.02927156,89353.0,89344.0,0.01119269]
[1765145769391,0.01119219,89348.0,89344.0,0.00161287]
[1765145769666,0.01808,89353.0,89350.0,0.01119194]
[1765145769845,0.01808,89353.0,89352.0,0.22383382]
[1765145770087,0.01808,89353.0,89352.0,0.22544669]
[1765145770250,0.05673881,89375.0,89352.0,0.22544669]
[1765145770251,0.01808,89369.0,89367.0,0.01118981]
[1765145770654,0.11318,89369.0,89366.0,0.01118993]
[1765145770864,0.11318,89369.0,89366.0,0.23498642]
[1765145771022,0.01808,89369.0,89366.0,0.23498642]
[1765145771236,0.01808,89369.0,89360.0,0.01119068]
[1765145771237,0.01119018,89364.0,89360.0,0.01119068]
[1765145771431,0.23499132,89365.0,89354.0,0.01119144]
[1765145771643,0.01118993,89366.0,89361.0,0.01119056]
[1765145772076,0.0951,89368.0,89363.0,0.01119031]
[1765145772307,0.01119093,89358.0,89352.0,0.01280456]
[1765145772525,0.27209151,89353.0,89340.0,0.22386241]
[1765145772734,0.01119056,89361.0,89354.0,0.22382814]
[1765145772951,0.22379375,89368.0,89360.0,0.235003]
[1765145773157,0.02926956,89369.0,89360.0,0.22381232]
[1765145773359,0.01119006,89365.0,89362.0,0.01119043]
[1765145773592,0.01119093,89358.0,89355.0,0.01119131]
[1765145773799,0.01119093,89358.0,89350.0,0.00161287]
[1765145773800,0.01119231,89347.0,89300.0,0.00119999]
[1765145774012,0.10844,89351.0,89300.0,0.00119999]
[1765145774013,0.01119469,89328.0,89318.0,0.01128595]
[1765145774222,0.01119469,89328.0,89318.0,9e-05]
[1765145774223,0.01119532,89323.0,89318.0,9e-05]
[1765145774437,0.01119507,89325.0,89321.0,0.01119557]
[1765145774651,0.24955248,89340.0,89321.0,0.01119557]
[1765145774652,0.22387442,89336.0,89329.0,0.22389145]
[1765145774863,0.00011817,89336.0,89333.0,0.01119407]
[1765145775523,0.00011817,89336.0,89333.0,0.23668655]
[1765145775900,0.00011817,89336.0,89335.0,0.22387642]
[1765145776326,0.00011817,89336.0,89335.0,0.22548929]
[1765145777173,0.00011817,89336.0,89335.0,0.23348929]
[1765145777975,0.00011817,89336.0,89335.0,0.23360929]
[1765145778131,0.00011817,89336.0,89335.0,0.29625228]
[1765145778331,0.00011817,89336.0,89335.0,0.37725064]
[1765145779040,0.00011817,89336.0,89335.0,0.37625064]
[1765145779905,0.00011817,89336.0,89335.0,0.36825064]
[1765145780115,0.00011817,89336.0,89335.0,0.69125064]
[1765145780328,0.00211817,89336.0,89335.0,0.71325064]
[1765145780526,0.00111817,89336.0,89335.0,0.70025064]
[1765145780909,0.00311817,89336.0,89335.0,0.72025064]
[1765145781104,0.00111817,89336.0,89335.0,0.70025064]
[1765145781587,0.00311817,89336.0,89335.0,0.72225064]
[1765145782310,0.00211817,89336.0,89335.0,0.71325064]
[1765145782498,0.00311817,89336.0,89335.0,0.70325064]
[1765145782647,0.00111817,89336.0,89335.0,0.70325064]
[1765145782853,0.00311817,89336.0,89335.0,0.73625064]
[1765145783052,0.00111817,89336.0,89335.0,0.70325064]
[1765145783252,0.00111817,89336.0,89335.0,0.30025228]
[1765145783598,0.00011817,89336.0,89335.0,0.29925228]
[1765145783957,0.00011817,89336.0,89335.0,0.30325228]
[1765145784176,0.00011817,89336.0,89335.0,0.29225228]
[1765145784352,0.00011817,89336.0,89335.0,0.28825228]
[1765145784557,0.00211817,89336.0,89335.0,0.32225228]
[1765145784848,0.00311817,89336.0,89335.0,0.76695734]
[1765145785773,0.00311817,89336.0,89335.0,0.33413228]
[1765145785990,0.00311817,89336.0,89335.0,0.33425228]
[1765145786561,0.00311817,89336.0,89335.0,0.33413228]
[1765145786958,0.00311817,89336.0,89335.0,0.33425228]
[1765145789123,0.00305751,89350.0,89349.0,0.28636433]
[1765145789326,0.02900757,89396.0,89378.0,0.01118843]
[1765145789327,0.01118793,89382.0,89378.0,0.01118843]
[1765145789525,0.00039471,89382.0,89381.0,0.01118806]
[1765145789874,0.00039471,89382.0,89381.0,0.01280093]
[1765145790726,0.00039471,89382.0,89381.0,0.01780093]
[1765145790980,0.00039471,89382.0,89381.0,0.005]
[1765145791394,0.00239471,89382.0,89381.0,0.005]
[1765145791610,0.15733471,89382.0,89381.0,0.005]
[1765145791818,0.30317471,89382.0,89381.0,0.005]
[1765145792032,0.15733471,89382.0,89381.0,0.005]
[1765145792236,0.00239471,89382.0,89381.0,0.005]
[1765145792475,0.01118906,89373.0,89368.0,0.01118968]
[1765145792709,0.01118831,89379.0,89370.0,0.01118943]
[1765145792918,0.01118893,89374.0,89369.0,0.01118956]
[1765145793090,0.01118918,89372.0,89369.0,0.01118956]
[1765145793352,0.22379188,89369.0,89363.0,0.01119031]
[1765145793569,0.22379188,89369.0,89358.0,0.22381788]
[1765145793570,0.28397188,89369.0,89358.0,0.22381788]
[1765145793800,0.28397188,89369.0,89349.0,0.08189781]
[1765145793801,0.01119119,89356.0,89352.0,0.01119169]
[1765145794004,0.01119131,89355.0,89350.0,0.23502902]
[1765145794182,0.01119131,89355.0,89348.0,0.23503472]
[1765145794183,0.22380877,89362.0,89352.0,0.22383382]
[1765145794421,0.01119106,89357.0,89350.0,0.01119194]
[1765145794598,0.01119106,89357.0,89342.0,0.01119294]
[1765145794599,0.01119244,89346.0,89342.0,0.01119294]
[1765145794770,0.23503603,89348.0,89342.0,0.01119294]
[1765145794771,0.01119219,89348.0,89342.0,0.23505139]
[1765145795196,0.2238238,89357.0,89346.0,0.01119244]
[1765145795197,0.01119106,89357.0,89346.0,0.01119244]
[1765145795376,0.23500153,89362.0,89357.0,0.01119106]
[1765145795580,0.03108,89369.0,89359.0,0.22381397]
[1765145795779,0.03026956,89369.0,89366.0,0.01118993]
[1765145796017,0.03026956,89369.0,89362.0,0.01119043]
[1765145796018,0.01118981,89367.0,89362.0,0.01119043]
[1765145796220,0.01847446,89369.0,89366.0,0.23498869]
[1765145797136,0.01847446,89369.0,89366.0,0.23660156]
[1765145797137,0.00339446,89369.0,89366.0,0.23660156]
[1765145797294,0.01739446,89369.0,89368.0,0.28648674]
[1765145797500,0.01739446,89369.0,89368.0,0.28809961]
[1765145797501,0.01439446,89369.0,89368.0,0.28809961]
[1765145798352,0.01439446,89369.0,89368.0,0.28826961]
[1765145798651,0.00039446,89369.0,89368.0,0.28826961]
[1765145798879,0.00039446,89369.0,89368.0,0.38759288]
[1765145799638,0.00039446,89369.0,89368.0,0.28926961]
[1765145799838,0.00039446,89369.0,89368.0,0.28892961]
[1765145800469,0.00039446,89369.0,89368.0,0.22640662]
[1765145800701,0.00039446,89369.0,89368.0,0.00261287]
[1765145800839,0.00039446,89369.0,89368.0,0.00278287]
[1765145801044,0.00039446,89369.0,89368.0,0.06547586]
[1765145801258,0.00039446,89369.0,89368.0,0.07399884]
[1765145802767,0.05487512,89412.0,89393.0,0.22373116]
[1765145802973,0.0003606,89394.0,89393.0,0.28803702]
[1765145803172,0.0003606,89394.0,89393.0,0.28820702]
[1765145803510,0.0003606,89394.0,89393.0,0.38638712]
[1765145803715,0.0003606,89394.0,89393.0,0.28803702]
[1765145804997,0.0033606,89394.0,89393.0,0.28803702]
[1765145805196,0.0033606,89394.0,89393.0,0.28820702]
[1765145805394,0.0033606,89394.0,89393.0,0.00161287]
[1765145805601,0.0003606,89394.0,89386.0,0.23493427]
[1765145805838,0.01118856,89377.0,89365.0,0.22380045]
[1765145806040,0.01118881,89375.0,89370.0,0.22378788]
[1765145806245,0.23495903,89378.0,89373.0,0.01118906]
[1765145806450,0.23495903,89378.0,89361.0,0.06252299]
[1765145806451,0.22374899,89386.0,89368.0,0.64242744]
[1765145806650,0.01118768,89384.0,89381.0,0.01118806]
[1765145806917,0.01118806,89381.0,89375.0,0.01118881]
[1765145807115,0.01118793,89382.0,89379.0,0.01118831]
[1765145807272,0.23494662,89382.0,89376.0,0.01118868]
[1765145807611,0.22374419,89388.0,89376.0,0.01118868]
[1765145807612,0.01118705,89389.0,89385.0,0.01118755]
[1765145807822,0.0111868,89391.0,89381.0,0.01118806]
[1765145808007,0.0111868,89391.0,89379.0,0.01118831]
[1765145808008,0.01118655,89393.0,89389.0,0.01118705]
[1765145808216,0.0184406,89394.0,89391.0,0.23492149]
[1765145809174,0.0184406,89394.0,89393.0,0.28642415]
[1765145809375,0.0244406,89394.0,89393.0,0.28642415]
[1765145809608,0.0063606,89394.0,89393.0,0.28642415]
[1765145809779,0.0003606,89394.0,89393.0,0.28803702]
[1765145809994,0.0053606,89394.0,89393.0,0.28803702]
[1765145810199,0.0053606,89394.0,89393.0,0.3239046]
[1765145810412,0.0053606,89394.0,89391.0,0.23492149]
[1765145810413,0.0003606,89394.0,89391.0,0.0111868]
[1765145810763,0.0003606,89394.0,89392.0,0.22373279]
[1765145810966,0.0003606,89394.0,89391.0,0.23492297]
[1765145811310,0.01154703,89394.0,89389.0,0.01118705]
[1765145811507,0.01154703,89394.0,89393.0,0.003]
[1765145811712,0.0053606,89394.0,89393.0,0.003]
[1765145811942,0.0053606,89394.0,89391.0,0.0111868]
[1765145811943,0.0003606,89394.0,89391.0,0.0111868]
[1765145812345,0.0063606,89394.0,89392.0,0.22373366]
[1765145812516,0.0013606,89394.0,89391.0,0.0111868]
[1765145812899,0.0083606,89394.0,89391.0,0.0111868]
[1765145813101,0.0083606,89394.0,89390.0,0.23492452]
[1765145813102,0.0013606,89394.0,89389.0,0.01118705]
[1765145813284,0.01118655,89393.0,89390.0,0.01118693]
[1765145813480,0.01654703,89394.0,89391.0,0.0111868]
[1765145813725,0.0053606,89394.0,89393.0,0.00017]
[1765145814282,0.0053606,89394.0,89393.0,0.00034]
[1765145814629,0.0003606,89394.0,89393.0,0.06494149]
[1765145814805,0.0013606,89394.0,89393.0,0.06494149]
[1765145815138,0.0050006,89394.0,89393.0,0.38747586]
[1765145815339,0.005,89394.0,89393.0,0.06430586]
[1765145815534,0.005,89394.0,89393.0,0.06530586]
[1765145815765,0.0111843,89411.0,89406.0,0.01118493]
[1765145815966,0.01118455,89409.0,89400.0,0.07370867]
[1765145816150,0.0111848,89407.0,89402.0,0.01118543]
[1765145816383,0.0111848,89407.0,89401.0,0.22371114]
[1765145816384,0.01118505,89405.0,89401.0,0.23489669]
[1765145816583,0.01118493,89406.0,89403.0,0.0111853]
[1765145816817,0.01118493,89406.0,89401.0,0.04809881]
[1765145817031,0.01808,89414.0,89393.0,0.00261287]
[1765145817232,0.01808,89414.0,89411.0,0.00017]
[1765145817534,0.2518433,89434.0,89411.0,0.11883854]
[1765145817625,0.0004,89440.0,89437.0,0.23480099]
[1765145817872,0.00051827,89440.0,89437.0,0.23480099]
[1765145818384,0.00051827,89440.0,89439.0,0.28630908]
[1765145819364,0.01551827,89440.0,89439.0,0.28630908]
[1765145819502,0.00051827,89440.0,89439.0,0.28647908]
[1765145819693,0.00051827,89440.0,89439.0,0.28630908]
[1765145819894,0.00451827,89440.0,89439.0,0.28613908]
[1765145820884,0.00451827,89440.0,89439.0,0.38618926]
[1765145821087,0.3916,89480.0,89439.0,0.38618926]
[1765145821088,0.22349208,89489.0,89459.0,0.00017]
[1765145821317,0.00039432,89489.0,89487.0,0.0111748]
[1765145821533,0.00039432,89489.0,89488.0,0.28618664]
[1765145821738,0.00039432,89489.0,89488.0,0.28796951]
[1765145821954,0.00270791,89489.0,89488.0,0.68893723]
[1765145822165,0.0001182,89504.0,89503.0,0.28597918]
[1765145822367,0.00023642,89504.0,89503.0,0.28759205]
[1765145823080,0.00011822,89504.0,89503.0,0.61059205]
[1765145823207,0.00011822,89504.0,89503.0,0.71857851]
[1765145823582,0.22357192,89504.0,89503.0,0.06252299]
[1765145823755,0.00011822,89504.0,89501.0,0.01117305]
[1765145824010,0.00011822,89504.0,89502.0,0.28598168]
[1765145824211,0.00011822,89504.0,89493.0,0.06252299]
[1765145824414,0.00111822,89504.0,89488.0,0.01]
[1765145824619,0.0111763,89475.0,89460.0,0.41863369]
[1765145824791,0.01117555,89481.0,89473.0,0.22353112]
[1765145824943,0.0111763,89475.0,89470.0,0.01117693]
[1765145825159,0.22351863,89478.0,89470.0,0.01117693]
[1765145825160,0.01117593,89478.0,89472.0,0.23470799]
[1765145825359,0.22353112,89473.0,89469.0,0.01117705]
[1765145825560,0.22353112,89473.0,89456.0,0.2235722]
[1765145825561,0.01117755,89465.0,89462.0,0.01117793]
[1765145825801,0.01117755,89465.0,89462.0,0.00039432]
[1765145826160,0.2235561,89463.0,89462.0,0.00039432]
[1765145826398,0.3229361,89463.0,89462.0,0.00039432]
[1765145826840,0.5908891,89463.0,89462.0,0.00039432]
[1765145827435,0.2235561,89463.0,89462.0,0.00039432]
[1765145827730,0.0292173,89467.0,89462.0,0.01157225]
[1765145827963,0.01,89463.0,89462.0,0.00039432]
[1765145828140,0.001,89463.0,89462.0,0.00039432]
[1765145828484,0.01,89463.0,89462.0,0.00039432]
[1765145828686,0.001,89463.0,89462.0,0.00039432]
[1765145828894,0.01117755,89465.0,89462.0,0.00039432]
[1765145828895,0.01117755,89465.0,89462.0,0.01157225]
[1765145829255,0.008,89463.0,89462.0,0.01157225]
[1765145829491,0.008,89463.0,89462.0,0.03345213]
[1765145829690,0.008,89463.0,89462.0,0.01318512]
[1765145830201,0.009,89463.0,89462.0,0.07570811]
[1765145830409,0.001,89463.0,89462.0,0.07570811]
[1765145830631,0.003,89463.0,89462.0,0.07570811]
[1765145830835,0.002,89463.0,89462.0,0.1919146]
[1765145831315,0.01117443,89490.0,89484.0,0.01117518]
[1765145831521,0.22352363,89476.0,89472.0,0.01117668]
[1765145831808,0.22352363,89476.0,89470.0,0.01117693]
[1765145831809,0.01117655,89473.0,89467.0,0.07370029]
[1765145832053,0.04873,89463.0,89462.0,0.00539432]
[1765145832199,0.01117755,89465.0,89462.0,0.00539432]
[1765145832404,0.0111763,89475.0,89463.0,0.2235561]
[1765145832662,0.42003368,89510.0,89474.0,0.28605161]
[1765145832663,0.01804,89476.0,89474.0,0.28605161]
[1765145832823,0.01117468,89488.0,89483.0,0.0111753]
[1765145833029,0.01804,89493.0,89489.0,0.01117455]
[1765145833231,0.01117455,89489.0,89485.0,0.01117505]
[1765145833451,0.0111753,89483.0,89479.0,0.07369879]
[1765145833651,0.0111753,89483.0,89481.0,0.06252299]
[1765145834016,0.01117293,89502.0,89491.0,0.06252299]
[1765145834258,0.01117318,89500.0,89496.0,0.06252299]
[1765145834470,0.00036005,89497.0,89496.0,0.06252299]
[1765145834641,0.00036005,89497.0,89496.0,0.06413586]
[1765145835838,0.00036005,89497.0,89496.0,0.06252299]
[1765145836039,0.00036005,89497.0,89496.0,0.07468488]
[1765145836458,0.00036005,89497.0,89496.0,0.06252299]
[1765145836664,0.00036005,89497.0,89496.0,0.07013586]
[1765145837079,0.00436005,89497.0,89496.0,0.06413586]
[1765145837277,0.00036005,89497.0,89496.0,0.06413586]
[1765145837555,0.00036005,89497.0,89496.0,0.06513586]
[1765145837690,0.00036005,89497.0,89496.0,0.48111495]
[1765145837882,0.00036005,89497.0,89496.0,0.47511495]
[1765145838298,0.00036005,89497.0,89496.0,0.48311495]
[1765145838499,0.00036005,89497.0,89496.0,0.47711495]
[1765145838924,0.00136005,89497.0,89496.0,0.50111495]
[1765145839294,0.00136005,89497.0,89496.0,0.49911495]
[1765145839694,0.00236005,89497.0,89496.0,0.51111495]
[1765145839949,0.00236005,89497.0,89496.0,0.48711495]
[1765145840088,0.00136005,89497.0,89496.0,0.39913586]
[1765145840316,0.00236005,89497.0,89496.0,0.42113586]
[1765145840558,0.00236005,89497.0,89496.0,0.42713586]
[1765145840755,0.00036005,89497.0,89496.0,0.006]
[1765145840917,0.00136005,89497.0,89496.0,0.025]
[1765145841513,0.00136005,89497.0,89496.0,0.1373929]
[1765145841759,0.00036005,89497.0,89496.0,0.12000577]
[1765145841936,0.00036005,89497.0,89496.0,0.12500577]
[1765145842426,0.0004,89510.0,89508.0,0.06252299]
[1765145842626,0.0004,89510.0,89509.0,0.38713586]
[1765145842828,0.0004,89510.0,89509.0,0.47277277]
[1765145843039,1e-08,89520.0,89519.0,0.60893924]
[1765145843250,1e-08,89520.0,89519.0,0.62859211]
[1765145843449,1e-08,89520.0,89519.0,0.61055211]
[1765145843697,1e-08,89520.0,89519.0,0.71852641]
[1765145844268,0.00200001,89520.0,89519.0,0.75052641]
[1765145844484,0.00300001,89520.0,89519.0,0.76152641]
[1765145845455,0.00200001,89520.0,89519.0,0.75052641]
[1765145845876,0.00200001,89520.0,89519.0,0.75252641]
[1765145846514,0.00200001,89520.0,89519.0,0.75052641]
[1765145846672,0.00300001,89520.0,89519.0,0.76152641]
[1765145847828,0.0004,89530.0,89529.0,0.2233913]
[1765145847990,0.00051813,89530.0,89529.0,0.65744022]
[1765145848613,0.00051813,89530.0,89529.0,0.28752716]
[1765145848888,0.00051813,89530.0,89529.0,0.29452716]
[1765145849088,0.0015153,89530.0,89529.0,0.29452716]
[1765145849520,0.0015153,89530.0,89529.0,0.28752716]
[1765145849723,0.0015153,89530.0,89529.0,0.29552716]
[1765145849931,0.0015153,89530.0,89529.0,0.40429374]
[1765145850508,0.0015153,89530.0,89529.0,0.73229374]
[1765145851138,0.0004,89570.0,89529.0,0.73229374]
[1765145851139,0.0004,89570.0,89549.0,0.6088644]
[1765145851339,0.0004,89570.0,89549.0,0.61047727]
[1765145853670,0.0004,89570.0,89549.0,0.61847727]
[1765145853827,0.0004,89570.0,89549.0,0.70489344]
[1765145854038,0.0004,89570.0,89569.0,0.22329154]
[1765145854240,0.00051813,89570.0,89569.0,0.6104274]
[1765145855702,0.0004,89600.0,89599.0,0.28573976]
[1765145855932,0.00079361,89600.0,89599.0,0.28573976]
[1765145856133,0.00079361,89600.0,89599.0,0.36744279]
[1765145856380,0.00079361,89600.0,89599.0,0.14422602]
[1765145857022,0.00079361,89600.0,89599.0,0.14583889]
[1765145857435,0.00290676,89600.0,89599.0,0.14583889]
[1765145859075,0.00290676,89600.0,89599.0,0.06413586]
[1765145859275,0.00290676,89600.0,89599.0,0.06252299]
[1765145859682,0.00290676,89600.0,89585.0,0.323]
[1765145859863,0.00290676,89600.0,89550.0,0.24864809]
[1765145859864,0.01116121,89596.0,89591.0,0.06252299]
[1765145860067,0.22322674,89595.0,89591.0,0.06252299]
[1765145860268,0.01303352,89592.0,89589.0,0.06252299]
[1765145860475,0.0111622,89588.0,89581.0,0.01116308]
[1765145860681,0.00079361,89600.0,89576.0,0.0111637]
[1765145860682,0.01116308,89581.0,89576.0,0.0111637]
[1765145860899,0.0111622,89588.0,89583.0,0.01116283]
[1765145861098,0.234409,89587.0,89584.0,0.06252299]
[1765145861315,0.01116295,89582.0,89576.0,0.0111637]
[1765145861515,0.01116283,89583.0,89579.0,0.01116333]
[1765145861871,0.01116283,89583.0,89570.0,0.24864809]
[1765145861872,0.01116395,89574.0,89567.0,0.01116482]
[1765145862015,0.01116345,89578.0,89573.0,0.01116407]
[1765145862229,0.01116345,89578.0,89570.0,0.23445275]
[1765145862230,0.23443516,89577.0,89570.0,0.23445275]
[1765145862434,0.01116407,89573.0,89570.0,0.01116445]
[1765145862631,0.01116407,89573.0,89569.0,0.01116457]
[1765145862934,0.01116407,89573.0,89570.0,0.06252299]
[1765145863280,0.01116407,89573.0,89554.0,0.22332771]
[1765145863281,0.22328747,89571.0,89550.0,0.24864809]
[1765145863489,0.01116495,89566.0,89557.0,0.01116607]
[1765145863682,0.01116544,89562.0,89558.0,0.01116594]
[1765145863912,0.01116532,89563.0,89559.0,0.01116582]
[1765145864307,0.01116532,89563.0,89560.0,0.01116569]
[1765145864523,0.0111647,89568.0,89561.0,0.01116557]
[1765145864688,0.01116544,89562.0,89560.0,0.06252299]
[1765145864889,0.01116544,89562.0,89557.0,0.22332069]
[1765145864890,0.04941,89561.0,89557.0,0.07368906]
[1765145865091,0.04941,89561.0,89560.0,0.06252299]
[1765145865855,0.01116544,89562.0,89560.0,0.06252299]
[1765145865985,0.01116507,89565.0,89560.0,0.07368868]
[1765145866193,0.22330983,89562.0,89560.0,0.06252299]
[1765145866430,0.01116532,89563.0,89560.0,0.06252299]
[1765145866972,0.22330899,89562.0,89560.0,0.06252299]
[1765145867172,0.0605752,89564.0,89561.0,0.01116557]
[1765145867312,0.04941,89564.0,89561.0,0.01116557]
[1765145867908,0.04941,89564.0,89560.0,0.22331397]
[1765145868114,0.01116395,89574.0,89567.0,0.06252299]
[1765145868319,0.02916432,89571.0,89567.0,0.06252299]
[1765145868522,0.02916432,89571.0,89566.0,0.06252299]
[1765145868720,0.22328904,89570.0,89566.0,0.06252299]
[1765145868923,0.01116295,89582.0,89572.0,0.06252299]
[1765145869121,0.01116295,89582.0,89579.0,0.06252299]
[1765145869602,0.0111627,89584.0,89579.0,0.29695121]
[1765145869878,0.01116171,89592.0,89587.0,0.01116233]
[1765145870079,0.07857183,89591.0,89585.0,0.01116258]
[1765145870242,0.0111622,89588.0,89583.0,0.01116283]
[1765145870448,0.06780361,89591.0,89588.0,0.0111622]
[1765145870654,0.01839361,89591.0,89590.0,0.28576219]
[1765145871058,0.00039361,89591.0,89590.0,0.28737506]
[1765145873968,0.00039361,89591.0,89590.0,0.28837506]
[1765145874233,0.00039361,89591.0,89590.0,0.32114044]
[1765145874443,0.00223525,89591.0,89590.0,0.06252299]
[1765145874638,0.01116233,89587.0,89582.0,0.01116295]
[1765145874852,0.01116233,89587.0,89583.0,0.01116283]
[1765145875066,0.01116208,89589.0,89584.0,0.07368569]
[1765145875361,0.22324418,89588.0,89584.0,0.07368569]
[1765145875662,0.22324418,89588.0,89584.0,0.06252299]
[1765145875663,0.01116233,89587.0,89584.0,0.06252299]
[1765145875867,0.01116233,89587.0,89581.0,0.01116308]
[1765145875868,0.04941,89585.0,89581.0,0.07368607]
[1765145876259,0.01116308,89581.0,89577.0,0.01116357]
[1765145876626,0.01116283,89583.0,89579.0,0.01116333]
[1765145876825,0.0111632,89580.0,89577.0,0.01116357]
[1765145877021,0.01116283,89583.0,89578.0,0.06252299]
[1765145877289,0.0111627,89584.0,89581.0,0.01116308]
[1765145877645,0.04941,89585.0,89583.0,0.06252299]
[1765145878053,0.01116295,89582.0,89579.0,0.06252299]
[1765145878256,0.0111632,89580.0,89573.0,0.01116407]
[1765145878455,0.0111632,89580.0,89577.0,0.06252299]
[1765145878661,0.01116295,89582.0,89577.0,0.07368656]
[1765145878913,0.23443577,89577.0,89574.0,0.06252299]
[1765145879076,0.0111632,89580.0,89576.0,0.06252299]
[1765145879627,0.0111627,89584.0,89581.0,0.01116308]
[1765145879836,0.04941,89585.0,89581.0,0.06252299]
[1765145879983,0.01276309,89583.0,89581.0,0.06252299]
[1765145880190,0.04941,89585.0,89582.0,0.01116295]
[1765145880414,0.06057258,89585.0,89581.0,0.06252299]
[1765145880587,0.06057258,89585.0,89572.0,0.0111642]
[1765145880588,0.01116357,89577.0,89572.0,0.0111642]
[1765145880795,0.01116357,89577.0,89573.0,0.06252299]
[1765145881017,0.01116357,89577.0,89572.0,0.06252299]
[1765145881216,0.0111622,89588.0,89581.0,0.06252299]
[1765145881422,0.04941,89584.0,89581.0,0.07368607]
[1765145881615,0.018,89592.0,89589.0,0.06252299]
[1765145881929,0.018,89592.0,89590.0,0.2232392]
[1765145883086,0.018,89592.0,89590.0,0.28737506]
[1765145883266,0.0004,89600.0,89590.0,0.39380399]
[1765145884075,0.0004,89600.0,89590.0,0.28737506]
[1765145884838,0.0004,89600.0,89590.0,0.28837506]
[1765145885454,0.0004,89600.0,89590.0,0.61137506]
[1765145885689,0.16190361,89591.0,89590.0,0.001]
[1765145886055,0.16190361,89591.0,89560.0,0.018]
[1765145886056,0.01116382,89575.0,89563.0,0.22330649]
[1765145886262,0.04892,89579.0,89577.0,0.22327065]
[1765145886425,0.04892,89579.0,89569.0,0.22328855]
[1765145886426,0.2233069,89563.0,89558.0,0.01116594]
[1765145886637,0.2233069,89563.0,89536.0,0.018]
[1765145886638,0.0111637,89576.0,89568.0,0.0111647]
[1765145886895,0.0111637,89576.0,89569.0,0.01116457]
[1765145887069,0.04892,89579.0,89576.0,0.23443779]